Cogmind - Beta 9.5 @@@ ROGUE MODE // 2020.04.07 @ 22:56:53 // Winter2019/RPGLIKE Player: Torako Result: Destroyed by D-53 Grenadier with Mini Grenade Launcher Performance ------------- Evolutions (1) 500 Regions Visited (4) 800 Robots Destroyed (55) 275 Value Destroyed (1104) 1104 Prototype IDs (6) 120 Alien Tech Used (0) 0 Bonus (61) 61 TOTAL SCORE: 2860 Bonus ------- High Alert Combat Kills 61 Cogmind --------- Core Integrity 0/600 Matter 274/300 Energy 4/530 System Corruption 4% Temperature Cool (337) Movement Treading (160) Location -9/Mines Parts ------- > --- POWER (1) -------- Cooled Ion Engine > --- PROPULSION (2) --- Light Treads Light Treads > --- UTILITY (3) ------ Improved Targeting Computer Light Armor Plating Shield Generator > --- WEAPON (2) ------- Improved EM Shotgun > --- INVENTORY (4) ---- Improved Assault Rifle EMP Blaster Rocket Launcher Mining Claw Peak State ------------ > --- POWER ------------ Cooled Ion Engine > --- PROPULSION ------- Light Treads Light Treads > --- UTILITY ---------- Improved Targeting Computer Light Armor Plating Shield Generator > --- WEAPON ----------- Improved EM Shotgun Improved EM Shotgun > --- INVENTORY -------- Improved Assault Rifle EMP Blaster Rocket Launcher Mining Claw [Rating: 16] Favorites ----------- Power Ion Engine Engine Ion Engine Propulsion Light Treads Treads Light Treads Leg Aluminum Leg Utility Improved Targeting Computer Device Disposable Heat Sink Processor Improved Targeting Computer Protection Light Armor Plating Weapon Autogun Energy Gun Improved EM Shotgun Ballistic Gun Autogun Launcher Rocket Launcher Build | -11 -10 -10 -9 -9 ------- Run | Scr Mat Min Mat Min Slots Evolved 4 | 1 . . 3 . Power . | . . . . . Propulsion 1 | . . . 1 . Utility 2 | . . . 2 . Weapon 1 | 1 . . . . Parts Attached 19 | 2 2 . 13 2 Power 2 | . . . 2 . Engine 2 | . . . 2 . Core . | . . . . . Reactor . | . . . . . Propulsion 3 | 1 . . 2 . Treads 3 | 1 . . 2 . Leg . | . . . . . Wheel . | . . . . . Hover . | . . . . . Flight . | . . . . . Utility 6 | . . . 6 . Device 2 | . . . 2 . Storage . | . . . . . Processor 2 | . . . 2 . Hackware . | . . . . . Protection 2 | . . . 2 . Artifact . | . . . . . Weapon 8 | 1 2 . 3 2 Energy Gun 4 | . . . 3 1 Energy Cannon . | . . . . . Ballistic Gun 3 | 1 2 . . . Ballistic Cannon . | . . . . . Launcher 1 | . . . . 1 Special Weapon . | . . . . . Impact Weapon . | . . . . . Slashing Weapon . | . . . . . Piercing Weapon . | . . . . . Special Melee Weapon . | . . . . . Unidentified Prototypes 2 | . . . 2 . Parts Lost 1 | . . . . 1 Power . | . . . . . Propulsion . | . . . . . Utility . | . . . . . Weapon 1 | . . . . 1 Highest Loss Streak 1 | . . . . 1 Average Slot Usage (%) 86 | . 80 80 96 100 Engine 17 | . 20 20 14 12 Treads 21 | . 20 20 23 25 Device 3 | . . . 8 12 Processor 5 | . . . 13 12 Protection 2 | . . . 5 12 Energy Gun 8 | . . . 19 25 Ballistic Gun 27 | . 40 40 9 . Naked Turns . | . . . . . Heaviest Build 19 | 7 11 11 19 19 Greatest Support 40 | 20 20 20 40 40 Greatest Overweight (x) . | . . . . . Average Overweight (x) . | . . . . . Largest Inventory Capacity 4 | 4 4 4 4 4 Average Capacity 4 | 4 4 4 4 4 Most Carried 4 | 4 4 4 4 4 Average Carried 3 | 2 3 4 3 4 Final Capacity 4 | 4 4 4 4 4 Final Carried 4 | 4 4 4 4 4 Class Distribution -------------------- 100% | Mutant Dominant Class ---------------- Mutant | -10/Materials Mutant | -10/Mines Mutant | -9/Materials Mutant | -9/Mines Resources | -11 -10 -10 -9 -9 ----------- Run | Scr Mat Min Mat Min Matter Collected 805 | 220 129 190 266 . Remotely . | . . . . . Salvage Created 1414 | . 181 184 1045 4 Parts 104 | . 18 15 71 . Haulers Intercepted 3 | . 1 . 2 . Recyclers Shooed . | . . . . . Parts Field Recycled . | . . . . . Retrieved Matter . | . . . . . Parts Self-Destructed . | . . . . . Prevented . | . . . . . Kills | -11 -10 -10 -9 -9 ------- Run | Scr Mat Min Mat Min Combat Hostiles Destroyed 48 | . 6 8 24 10 Guns 36 | . 6 8 21 1 AOE 12 | . . . 3 9 Classes Destroyed 8 | . 5 . 2 1 Builder 2 | . 1 . 1 . Hauler 3 | . 1 . 2 . Operator 1 | . 1 . . . Watcher 1 | . . . 1 . Swarmer 15 | . 3 6 6 . Grunt 18 | . 3 2 13 . Sentry 5 | . . . 5 . Assembled 10 | . . . . 10 Best Kill Streak 10 | . 5 5 5 10 Combat Bots Only 10 | . 4 5 5 10 Max Kills in Single Turn 9 | . 1 1 3 9 Gunslinging 1 | . . . 1 . Exploded 9 | . . . 2 9 Melee . | . . . . . Uniques/NPCs Destroyed . | . . . . . Combat | -11 -10 -10 -9 -9 -------- Run | Scr Mat Min Mat Min Damage Taken 2079 | . 259 308 1020 492 Core 1630 | . 209 249 819 353 Absorbed by Shields 190 | . . . 47 143 Redirected to Core 1285 | . 168 179 648 290 Core Remaining (%) 88 | 100 . 76 . . Volleys Fired 98 | . 18 20 52 8 Largest 2 | . 2 2 2 2 Hottest 90 | . 46 46 90 90 Shots Fired 191 | . 36 40 102 13 Gun 190 | . 36 40 102 12 Cannon . | . . . . . Launcher 1 | . . . . 1 Special . | . . . . . Kinetic 106 | . 36 40 30 . Thermal . | . . . . . Explosive 1 | . . . . 1 Electromagnetic 84 | . . . 72 12 Robot Hit Streak 31 | . 5 6 31 6 Robot Miss Streak 3 | . 3 3 3 3 Penetration Max . | . . . . . Secondary Targets 7 | . 2 2 3 . Max Gunslinging Chain 1 | . 1 1 1 . Shots Hit Robots 141 | . 23 25 83 10 Core Hits 95 | . 11 10 52 22 Critical Hits 2 | . . . 2 . Critical Kills . | . . . . . Critical Parts Destroyed 2 | . . . 2 . Melee Attacks . | . . . . . Impact . | . . . . . Slashing . | . . . . . Piercing . | . . . . . Sneak Attacks . | . . . . . Combat Hostiles . | . . . . . Follow-up Attacks . | . . . . . Damage Inflicted 2876 | . 373 337 1602 564 Guns 2137 | . 372 337 1279 149 Cannons . | . . . . . Explosions 736 | . . . 321 415 Melee . | . . . . . Ramming 3 | . 1 . 2 . Kinetic 1015 | . 372 337 306 . Thermal 505 | . . . 321 184 Explosive 231 | . . . . 231 Electromagnetic 1122 | . . . 973 149 Impact . | . . . . . Slashing . | . . . . . Piercing . | . . . . . Highest Corruption 4 | . . . 4 4 Average Corruption 4 | . . . 4 4 Corruption Purged . | . . . . . Effects 13 | . . . 12 1 Message Errors 4 | . . . 4 . Matter Fused 2 | . . . 2 . Heat Flow Errors 1 | . . . . 1 Energy Discharges 3 | . . . 3 . Parts Rejected 1 | . . . 1 . Weapon Failures 2 | . . . 2 . Overload Shots . | . . . . . Overflow Damage 10 | . . . 9 1 Projectiles . | . . . . . Explosions 10 | . . . 9 1 Melee . | . . . . . Knockbacks . | . . . . . Impact . | . . . . . Kinetic . | . . . . . Secondary . | . . . . . Self-Inflicted Damage 234 | . . . 161 73 Shots 7 | . . . 5 2 Rammed 2 | . 1 . 1 . Targets Rammed 2 | . 1 . 1 . Kicked . | . . . . . Crushed . | . . . . . Highest Temperature 337 | . 49 24 198 337 Average Temperature 58 | . 18 7 61 228 Received Heat Transfer 493 | . 105 42 318 28 Siege Activations . | . . . . . Robots Corrupted . | . . . . . Combat Hostiles . | . . . . . Parts Fried 5 | . . . 5 . Impact Corruptions . | . . . . . Robots Melted . | . . . . . Combat Hostiles . | . . . . . Parts Melted 1 | . . . 1 . Heat Transferred 700 | . . . 450 250 Parts Sabotaged . | . . . . . Parts Stolen . | . . . . . Parts Stripped . | . . . . . Power Chain Reactions 6 | . . . 6 . Missiles Intercepted . | . . . . . Alert | -11 -10 -10 -9 -9 ------- Run | Scr Mat Min Mat Min Peak Influence 603 | . 255 135 603 162 Average Influence 164 | . 98 41 319 153 Maximum Alert Level 2 | . 1 . 2 . Low Security (%) 66 | 100 74 100 28 100 Level 1 20 | . 25 . 37 . Level 2 13 | . . . 33 . Level 3 . | . . . . . Level 4 . | . . . . . Level 5 . | . . . . . High Security . | . . . . . Max Security . | . . . . . Squads Dispatched 9 | . 2 . 7 . Investigation 3 | . 1 . 2 . Extermination . | . . . . . Reinforcement 6 | . 1 . 5 . Assault . | . . . . . Garrison . | . . . . . Intercept . | . . . . . Construction Impeded 1 | . . . 1 . Haulers Reinforced . | . . . . . Stealth | -11 -10 -10 -9 -9 --------- Run | Scr Mat Min Mat Min Distress Signals 2 | . . . 2 . Communications Jammed . | . . . . . Distress Signals . | . . . . . Times Spotted 66 | . 12 8 32 14 Peak Tracking Total 11 | . 5 5 6 11 Tactical Retreats 4 | . 2 . 2 . Traps | -11 -10 -10 -9 -9 ------- Run | Scr Mat Min Mat Min Traps Triggered 2 | . 2 . . . Indirectly . | . . . . . Trap Hack Attempts . | . . . . . Triggered . | . . . . . Disarmed . | . . . . . Reprogrammed . | . . . . . Reused . | . . . . . Traps Extracted . | . . . . . Installed . | . . . . . Triggered . | . . . . . Machines | -11 -10 -10 -9 -9 ---------- Run | Scr Mat Min Mat Min Machines Disabled 3 | . . . 2 1 Max in Single Turn 2 | . . . 2 1 Machines Sabotaged . | . . . . . Garrisons Compromised . | . . . . . Overloaded Fab Kills . | . . . . . Fab Network Shutdowns . | . . . . . Hacking | -11 -10 -10 -9 -9 --------- Run | Scr Mat Min Mat Min Machines Accessed 12 | . 5 1 6 . Terminals 10 | . 5 1 4 . Fabricators . | . . . . . Repair Stations . | . . . . . Recycling Units 2 | . . . 2 . Scanalyzers . | . . . . . Garrison Access . | . . . . . Total Hacks 41 | . 21 4 16 . Successful 24 | . 13 1 10 . Failed 17 | . 8 3 6 . Catastrophic 3 | . 1 . 2 . Database Lockouts . | . . . . . Manual 36 | . 18 4 14 . Terminals 39 | . 21 4 14 . Fabricators . | . . . . . Repair Stations . | . . . . . Recycling Units 2 | . . . 2 . Scanalyzers . | . . . . . Garrison Access . | . . . . . Terminal Hacks 9 | . 4 1 4 . Prototype ID Bank 2 | . 1 . 1 . Branch Access Points 2 | . 1 . 1 . Unreport Threat 2 | . . 1 1 . Recall Investigation 1 | . 1 . . . Recall Reinforcements 1 | . 1 . . . Hauler Manifests 1 | . . . 1 . Fabricator Hacks . | . . . . . Repair Station Hacks . | . . . . . Recycling Unit Hacks . | . . . . . Scanalyzer . | . . . . . Garrison Access Hacks . | . . . . . Unauthorized Hacks 37 | . 24 . 13 . Terminals 12 | . 9 . 3 . Track 2 | . 2 . . . Assimilate 2 | . 2 . . . Botnet 8 | . 5 . 3 . Fabricators . | . . . . . Repair Stations . | . . . . . Recycling Units 2 | . . . 2 . Tunnel 2 | . . . 2 . Scanalyzers . | . . . . . Garrison Access . | . . . . . Data Cores Recovered . | . . . . . Used . | . . . . . Hacking Detections 7 | . 3 1 3 . Full Trace Events 2 | . 2 . . . Feedback Events . | . . . . . Feedback Blocked . | . . . . . Robot Schematics Acquired . | . . . . . Robots Built . | . . . . . Matter . | . . . . . Time . | . . . . . Total Robot Build Rating . | . . . . . Part Schematics Acquired . | . . . . . Parts Built . | . . . . . Matter . | . . . . . Time . | . . . . . Total Part Build Rating . | . . . . . Parts Repaired . | . . . . . Time . | . . . . . Parts Recycled . | . . . . . Recycled Matter . | . . . . . Retrieved Matter . | . . . . . Retrieved Components . | . . . . . Parts Scanalyzed . | . . . . . Part Schematics Acquired . | . . . . . Parts Damaged . | . . . . . Bothacking | -11 -10 -10 -9 -9 ------------ Run | Scr Mat Min Mat Min Used RIF Installer . | . . . . . Robots Hacked . | . . . . . Non-combat . | . . . . . Combat . | . . . . . Robot Hacks Applied . | . . . . . Relay Couplers Released . | . . . . . Robots Rewired . | . . . . . Allies Hacked . | . . . . . Hacks Repelled . | . . . . . Allies | -11 -10 -10 -9 -9 -------- Run | Scr Mat Min Mat Min Total Allies 1 | . 1 . . . Largest Group 1 | . 1 1 . . Highest-Rated Group 10 | . 10 10 . . Highest-Rated Ally 10 | . 10 10 . . Total Orders . | . . . . . Ally Attacks . | . . . . . Total Damage . | . . . . . Kills . | . . . . . Allies Corrupted . | . . . . . Allies Melted . | . . . . . Intel | -11 -10 -10 -9 -9 ------- Run | Scr Mat Min Mat Min Robot Analysis Total . | . . . . . Derelict Logs Recovered 2 | . . 2 . . Drone Launches . | . . . . . Drone Recoveries . | . . . . . Exploration | -11 -10 -10 -9 -9 ------------- Run | Scr Mat Min Mat Min Turns Passed 2337 | 26 475 867 924 45 Spaces Moved 1176 | 13 241 496 412 14 Core . | . . . . . Treads 1173 | 10 241 496 412 14 Legs 3 | 3 . . . . Wheels . | . . . . . Hover . | . . . . . Flight . | . . . . . Fastest Speed 120 | 120 160 160 160 160 Average Speed 159 | 150 160 160 160 160 Slowest Speed 160 | 160 160 160 160 160 Overloaded Moves . | . . . . . Propulsion Burnouts . | . . . . . Robots Hopped . | . . . . . Cave-ins Triggered . | . . . . . Exploration Rate (%) 38 | 2 42 97 42 10 Regions Visited 4 Branch Regions 2 Pre-discovered Areas 2 | . . . 2 . Known Exits Taken 2 | . 1 . 1 . Unknown Exits Taken 2 | 1 . 1 . . Scrap Searched 3 | . . 3 . . Spaces Dug . | . . . . . Terrain Destroyed 92 | . . . 81 11 Melee . | . . . . . Projectile . | . . . . . AOE 92 | . . . 81 11 Actions | -11 -10 -10 -9 -9 --------- Run | Scr Mat Min Mat Min Total 1465 | 20 305 538 578 24 Wait 94 | . 26 15 53 . Move 1172 | 12 240 495 411 14 Hop . | . . . . . Pick Up 12 | 4 3 1 4 . Fast Attach 12 | 2 . . 10 . Attach . | . . . . . Detach 1 | 1 . . . . Swap 7 | . 2 . 3 2 Drop 18 | 1 5 1 11 . Fire 98 | . 18 20 52 8 Melee . | . . . . . Ram . | . . . . . Kick . | . . . . . Crush 2 | . 1 . 1 . Escape Stasis . | . . . . . Rewire . | . . . . . Trap . | . . . . . Miscellaneous 49 | . 10 6 33 . Route ------- -11/Scrapyard -10/Materials (discovered 2 exits: *Min x2) -10/Mines (discovered 2 exits: *Mat x2) -9/Materials (discovered 2 exits: [*Mat] / *Min) -9/Mines History --------- Turn | Location | Event 1 | -11/Scrapyard | Upgraded with Weapon slot (x1) 1 | -11/Scrapyard | Discovered new exit (range 1) 27 | -11/Scrapyard | Entered Materials 259 | -10/Materials | Identified exit to Mines 313 | -10/Materials | Build established: Mutant 502 | -10/Materials | Entered Mines 502 | -10/Mines | Accompanied by 1 ally 510 | -10/Mines | Discovered new exit (range 6) 569 | -10/Mines | Learned Materials security intel 659 | -10/Mines | Reached level 2 1075 | -10/Mines | Discovered new exit (range 9) 1200 | -10/Mines | Received a Rocket Launcher from a helpful Derelict 1369 | -10/Mines | Entered Materials 1371 | -9/Materials | Reached level 3 1521 | -9/Materials | Upgraded with Propulsion slot (x1) 1521 | -9/Materials | Upgraded with Utility slot (x1) 1617 | -9/Materials | Reached level 4 1648 | -9/Materials | Core integrity fell below 50% 1852 | -9/Materials | Reached level 5 2016 | -9/Materials | Discovered new exit (range 4) 2048 | -9/Materials | Upgraded with Utility slot (x1) 2141 | -9/Materials | Identified exit to Mines 2267 | -9/Materials | Reached level 6 2293 | -9/Materials | Entered Mines 2296 | -9/Mines | Assembled infested the area 2301 | -9/Mines | Assisted by a Guerilla fighting off Assembled 2334 | -9/Mines | Core integrity fell below 20% 2338 | -9/Mines | Destroyed by D-53 Grenadier with Mini Grenade Launcher Last Messages --------------- as-46575 destroyed. as-49372 destroyed. Plasma Injector explodes. as-13965 destroyed. as-33864 destroyed. as-81044 destroyed. Destroyed Asb. Hover Unit. as-86568 destroyed. as-03035 destroyed. as-61645 destroyed. as-44744 destroyed. K-01 Serf collects debris. System corrupted: Heat flow error (+157). K-01 Serf collects debris. D-53 Grenadier unfolds itself. K-01 Serf destroyed. as-36505 destroyed. as-00146 destroyed. Imp. EM Shotgun destroyed. U-05 Engineer lays Concrete. Map ----- +----------------------------------------------------+ | | | | | | | | | | | | | | | | | | | ?????????????????????????????????????????????????? | | ?????????????????????????????????????????????????? | | ??????????????????????????########???????????????? | | ??????????????????????????# #???????????????? | | ??????????????????????????# #???????????????? | | ??????????????????????##### #???????????????? | | ??????????????????????# #???????????????? | | ??????????????????????# ### #???????????????? | | ??????????????????????# #?# #???????????????? | | ??????????????????????# #?########???????????????? | | ??????????????????????# #????????????????????????? | | ??????????????????????# #####????????????????????? | | ????????????????????### ##???????????????????? | | ???????????????????## ##??????????????????? | | ??????????????????##; ##?????????????????? | | ?????????????# # % #?????????????????? | | ?????????? @ #?????????????????? | | ?????????" ##?????????????????? | | ????????????### % #??????????????????? | | ??????????????## dd ##??????????????????? | | ???????????????#####; ##???????????????????? | | ???????????????????##; u####????????????????????? | | ????????????????????#### ???????????????????????? | | ???????????????????????# #???????????????????????? | | ??????????????????????? #???????????????????????? | | ??????????????????????? ???????????????????????? | | ??????????????????????? ???????????????????????? | | ??????????????????????? ????????????????????????? | | ??????????????????????? ????????????????????????? | | ??????????????????????# ????????????????????????? | | ??????????????????????###????????????????????????? | | ?????????????????????????????????????????????????? | | ?????????????????????????????????????????????????? | | ?????????????????????????????????????????????????? | | ?????????????????????????????????????????????????? | | ?????????????????????????????????????????????????? | | ?????????????????????????????????????????????????? | | ?????????????????????????????????????????????????? | | ?????????????????????????????????????????????????? | | ?????????????????????????????????????????????????? | | ?????????????????????????????????????????????????? | +----------------------------------------------------+ Best States ------------- Heat Dissipation 25 Coolant Potential 50 Energy Generation 24 Energy Capacity 530 Matter Stores 300 Matter Capacity 300 Sight Range 16 Terrain Scan Density 10 Armor Coverage 150 Resistance: KI 20 Resistance: TH 20 Evasion (%) 40 Targeting Accuracy 6 Recoil Reduction 2 Item Schematics ----------------- None Robot Schematics ------------------ None Fabricated ------------ Nothing Alien Tech Used ----------------- None Achievements -------------- None Challenges ------------ None RPGLIKE | -11 -10 -10 -9 -9 --------- Run | Scr Mat Min Mat Min Levels Raised 5 | . . 1 4 . XP Earned 11144 | 3000 945 1450 5174 575 XP Spent 10500 | 3000 . . 7500 . Upgrades 23 | 5 . . 18 . Propulsion Slot 1 | . . . 1 . Utility Slot 2 | . . . 2 . Weapon Slot 1 | 1 . . . . Energy Generation 2 | . . . 2 . Energy Storage 5 | . . . 5 . Inventory Capacity 4 | 4 . . . . KI Resistance % 4 | . . . 4 . TH Resistance % 4 | . . . 4 . Protomatter Created 391 | . 90 35 257 9 Integrity Restored 1022 | . 209 105 708 . Core 1022 | . 209 105 708 . Protomatter Decayed . | . . . . . Game ------ Seed SupersonicColdStreamer Manual? 0 Play Time 00:19:40 Cumulative 174.8 hours Start 2020.04.07 @ 22:37:20 End 2020.04.07 @ 22:56:53 Sessions 1 Manual Loads 0 Difficulty Rogue Special Mode Winter2019/RPGLIKE Game No. 201 Rogue 201 Adventurer 0 Explorer 0 Win Type - Total 6 Types 5/0/1/0/0/0/0 Lore% 72 Gallery% 82 Achievement% 59 Wizard Run 0 Options --------- ASCII 0 Keyboard 1 Movement Numpad Keybinds 0 Fullscreen 1 Font 18/SmallcapsGlow Map View 76x50 Tactical HUD 1 Map Filters NONE Filters NONE Steam 1 RUN: e6fafc6e-0864-47fc-b145-4600a40740aa